[Event "50th La Roda Open 2024"]
[Site "La Roda"]
[Date "2024.03.29"]
[Round "5.16"]
[White "Blom, Vincent"]
[Black "Portero Rubio, Martin"]
[Result "1/2-1/2"]
[ECO "A08"]
[WhiteElo "2307"]
[BlackElo "2067"]
[Annotator "RC"]
[PlyCount "209"]
[EventDate "2024.03.27"]
[EventType "swiss"]
[EventCountry "ESP"]
[SourceTitle "playchess.com"]
[Source "ChessBase"]
[SourceQuality "1"]
[TimeControl "5400+30"]

1. Nf3 {[%emt 0:00:03]} d5 {[%emt 0:00:24]} 2. g3 {[%emt 0:00:12]} c5 {[%emt 0:00:13]} 3. Bg2 {[%emt 0:00:17]} g6 {[%emt 0:00:05]} 4. c4 {[%emt 0:04:46]} d4 {[%emt 0:00:34]} 5. O-O {[%emt 0:11:47]} Bg7 {[%emt 0:01:05]} 6. e4 {[%emt 0:06:14]} Nc6 {[%emt 0:04:24]} 7. d3 {[%emt 0:01:33]} e5 {[%emt 0:02:55]} 8. Na3 {[%emt 0:07:37]} Nge7 {[%emt 0:01:19]} 9. Nh4 {[%emt 0:03:37]} O-O {[%emt 0:10:04]} 10. f4 {[%emt 0:09:41]} exf4 {[%emt 0:00:51]} 11. gxf4 {[%emt 0:02:21]} f5 {[%emt 0:05:18]} 12. e5 {[%emt 0:05:07]} g5 {[%emt 0:04:30]} 13. fxg5 {[%emt 0:03:09]} Nxe5 {[%emt 0:03:22]} 14. Nc2 {[%emt 0:04:54]} Be6 {[%emt 0:15:38]} 15. Bf4 {[%emt 0:23:21]} N5g6 {[%emt 0:00:30]} 16. Nxg6 {[%emt 0:00:30]} Nxg6 {[%emt 0:00:30]} 17. Qd2 {[%emt 0:00:30]} Qd7 {[%emt 0:00:30]} 18. Rae1 {[%emt 0:00:30]} Rae8 {[%emt 0:00:30]} 19. b4 {[%emt 0:00:30]} b6 {[%emt 0:47:18]} 20. b5 Qc8 {[%emt 0:00:00]} 21. Bc6 {[%emt 0:05:44]} Bd7 {[%emt 0:00:00]} 22. Bd5+ {[%emt 0:00:43]} Kh8 {[%emt 0:00:00]} 23. Bd6 {[%emt 0:00:58]} Rxe1 {[%emt 0:00:00]} 24. Rxe1 {[%emt 0:00:07]} Re8 {[%emt 0:00:00]} 25. Bf7 {[%emt 0:01:13]} Rxe1+ {[%emt 0:00:00]} 26. Qxe1 {[%emt 0:00:39]} Qd8 {[%emt 0:00:00]} 27. h4 {[%emt 0:03:28]} Bxb5 {[%emt 0:00:00]} 28. Bg3 {[%emt 0:03:24]} Ba4 {[%emt 0:00:00]} 29. Na3 {[%emt 0:00:49]} Qe7 {[%emt 0:01:48]} 30. Qxe7 {[%emt 0:00:21]} Nxe7 {[%emt 0:00:00]} 31. h5 {[%emt 0:00:42]} h6 {[%emt 0:01:02]} 32. gxh6 {[%emt 0:01:00]} Bxh6 {[%emt 0:00:02]} 33. Bh4 {[%emt 0:00:27]} Nc6 {[%emt 0:01:00]} 34. Bf6+ {[%emt 0:00:39]} Bg7 {[%emt 0:00:20]} 35. Bxg7+ {[%emt 0:00:22]} Kxg7 {[%emt 0:00:01]} 36. Be8 {[%emt 0:00:01]} Kh6 {[%emt 0:03:09]} 37. Kf2 {[%emt 0:00:28]} Ne5 {[%emt 0:00:44]} 38. Bxa4 {[%emt 0:00:04]} Nxd3+ {[%emt 0:00:01]} 39. Ke2 {[%emt 0:01:19]} Nc1+ {[%emt 0:00:15]} 40. Kd2 {[%emt 0:00:07]} Nxa2 {[%emt 0:00:05]} 41. Be8 {[%emt 0:00:29]} Nc3 {[%emt 0:00:26]} 42. Nb5 {[%emt 0:00:59]} Ne4+ {[%emt 0:00:50]} 43. Kd3 {[%emt 0:00:25]} a6 {[%emt 0:00:36]} 44. Nc7 {[%emt 0:00:24]} Nd6 {[%emt 0:00:28]} 45. Bg6 {[%emt 0:00:39]} b5 {[%emt 0:01:04]} 46. cxb5 {[%emt 0:00:14]} axb5 {[%emt 0:00:12]} 47. Ne6 {[%emt 0:00:19]} Ne4 {[%emt 0:00:39]} 48. Bxf5 {[%emt 0:00:43]} Ng3 {[%emt 0:00:28]} 49. Bg4 {[%emt 0:00:25]} c4+ {[%emt 0:00:48]} 50. Kxd4 {[%emt 0:00:11]} Nxh5 {[%emt 0:00:11]} 51. Nc7 {[%emt 0:00:18]} Kg5 {[%emt 0:00:35]} 52. Bd7 {[%emt 0:00:20]} Nf4 {[%emt 0:00:51]} 53. Bxb5 {[%emt 0:00:19]} c3 {[%emt 0:00:23]} 54. Kxc3 {[%emt 0:00:11]} Kf5 {[%emt 0:00:01]} 55. Na6 {[%emt 0:01:11]} Ke5 {[%emt 0:00:12]} 56. Bc6 {[%emt 0:00:11]} Kd6 {[%emt 0:00:19]} 57. Bf3 {[%emt 0:00:06]} Nd5+ {[%emt 0:00:58]} 58. Kd4 {[%emt 0:00:44]} Nf4 {[%emt 0:00:29]} 59. Nb4 {[%emt 0:00:18]} Ne6+ {[%emt 0:00:08]} 60. Kc4 {[%emt 0:00:04]} Nf4 {[%emt 0:00:16]} 61. Nc6 {[%emt 0:00:58]} Ng6 {[%emt 0:00:22]} 62. Kd4 {[%emt 0:00:03]} Nf4 {[%emt 0:00:22]} 63. Na5 {[%emt 0:00:13]} Ne6+ {[%emt 0:00:08]} 64. Kc4 {[%emt 0:00:05]} Nf4 {[%emt 0:00:26]} 65. Bh1 {[%emt 0:00:34]} Ne6 {[%emt 0:00:13]} 66. Nb3 {[%emt 0:00:08]} Ke5 {[%emt 0:00:09]} 67. Bg2 {[%emt 0:00:39]} Nf4 {[%emt 0:00:06]} 68. Ba8 {[%emt 0:00:16]} Ne6 {[%emt 0:00:11]} 69. Nc1 {[%emt 0:00:04]} Nf4 {[%emt 0:00:12]} 70. Bf3 {[%emt 0:00:15]} Kf5 {[%emt 0:00:26]} 71. Kc5 {[%emt 0:00:14]} Ke5 {[%emt 0:00:05]} 72. Bh1 {[%emt 0:00:11]} Ne6+ {[%emt 0:00:05]} 73. Kc6 {[%emt 0:00:12]} Nf4 {[%emt 0:00:17]} 74. Nb3 {[%emt 0:00:38]} Ne6 {[%emt 0:00:03]} 75. Kd7 {[%emt 0:00:11]} Nd4 {[%emt 0:00:35]} 76. Nd2 {[%emt 0:00:10]} Kf4 {[%emt 0:00:17]} 77. Ba8 {[%emt 0:00:25]} Ke3 {[%emt 0:00:34]} 78. Nc4+ {[%emt 0:00:04]} Kd3 {[%emt 0:00:06]} 79. Ne5+ {[%emt 0:00:03]} Kc3 {[%emt 0:00:09]} 80. Kd6 {[%emt 0:00:18]} Nb5+ {[%emt 0:00:06]} 81. Kc5 {[%emt 0:00:05]} Nd4 {[%emt 0:00:15]} 82. Be4 {[%emt 0:00:20]} Ne6+ {[%emt 0:00:14]} 83. Kd6 {[%emt 0:00:10]} Kd4 {[%emt 0:00:42]} 84. Bd5 {[%emt 0:00:29]} Nf4 {[%emt 0:00:41]} 85. Nf3+ {[%emt 0:00:45]} Ke3 {[%emt 0:00:15]} 86. Bc6 {[%emt 0:00:17]} Nd3 {[%emt 0:00:14]} 87. Ba8 {[%emt 0:00:11]} Nf4 {[%emt 0:00:20]} 88. Nh4 {[%emt 0:00:16]} Nd3 {[%emt 0:00:22]} 89. Bb7 {[%emt 0:00:26]} Kd4 {[%emt 0:00:24]} 90. Nf5+ {[%emt 0:00:10]} Kc3 {[%emt 0:00:19]} 91. Ba6 {[%emt 0:00:08]} Nb4 {[%emt 0:00:36]} 92. Bf1 {[%emt 0:00:46]} Nc2 {[%emt 0:00:20]} 93. Kc5 {[%emt 0:00:21]} Kd2 {[%emt 0:00:23]} 94. Ba6 {[%emt 0:00:37]} Kc3 {[%emt 0:00:12]} 95. Nd6 {[%emt 0:00:09]} Kd2 {[%emt 0:00:40]} 96. Bb5 {[%emt 0:00:46]} Na3 {[%emt 0:00:40]} 97. Ba4 {[%emt 0:00:05]} Nc2 {[%emt 0:00:27]} 98. Nc4+ {[%emt 0:00:27]} Kc3 {[%emt 0:00:11]} 99. Nb6 {[%emt 0:00:15]} Ne3 {[%emt 0:00:12]} 100. Bb5 {[%emt 0:00:06]} Kd2 {[%emt 0:00:19]} 101. Kd4 {[%emt 0:00:07]} Nc2+ {[%emt 0:00:01]} 102. Ke4 {[%emt 0:00:05]} Na3 {[%emt 0:00:20]} 103. Bd3 {[%emt 0:00:18]} Kc3 {[%emt 0:00:21]} 104. Nd5+ {[%emt 0:00:05]} Kb3 {[%emt 0:00:10]} 105. Kd4 {[%emt 0:00:13]} 1/2-1/2

[Event "50th La Roda Open 2024"]
[Site "La Roda"]
[Date "2024.03.30"]
[Round "6.1"]
[White "Aravindh, Chithambaram VR."]
[Black "Iturrizaga Bonelli, Eduardo"]
[Result "1-0"]
[ECO "D19"]
[WhiteElo "2662"]
[BlackElo "2588"]
[Annotator "TA"]
[PlyCount "69"]
[EventDate "2024.03.27"]
[EventType "swiss"]
[EventCountry "ESP"]
[SourceTitle "playchess.com"]
[Source "ChessBase"]
[SourceQuality "1"]
[TimeControl "5400+30"]

{[%evp 23,69,23,17,19,0,5,13,-13,-13,-12,-34,-20,0,-7,0,0,44,15,25,-28,-43,-31,-32,-25,87,83,80,91,69,86,94,104,142,17,81,42,133,90,100,93,154,179,393,381,5200,5189,2064,1991]} 1. d4 {[%emt 0:00:04]} Nf6 {[%emt 0:00:18]} 2. c4 {[%emt 0:00:12]} c6 {[%emt 0:00:17]} 3. Nf3 {[%emt 0:01:44]} d5 {[%emt 0:00:07]} 4. Nc3 {[%emt 0:01:37]} dxc4 {[%emt 0:00:09]} 5. a4 {[%emt 0:00:19]} Bf5 {[%emt 0:00:07]} 6. e3 {[%emt 0:00:53]} e6 {[%emt 0:00:07]} 7. Bxc4 {[%emt 0:00:08]} Bb4 {[%emt 0:00:06]} 8. O-O {[%emt 0:00:07]} O-O {[%emt 0:00:05]} 9. Qe2 {[%emt 0:01:21]} Bg6 {[%emt 0:00:06]} 10. Ne5 {[%emt 0:08:05]} Nbd7 {[%emt 0:00:25]} 11. Nxg6 {[%emt 0:07:32]} hxg6 {[%emt 0:00:05]} 12. Rd1 {[%emt 0:00:06]} Qa5 {[%emt 0:01:00]} 13. Na2 {[%emt 0:05:38]} Qxa4 {[%emt 0:00:39]} 14. e4 {[%emt 0:09:51]} Qa5 {[%emt 1:11:22] Gegen Bg5 gerichtet.} 15. Nxb4 {[%emt 0:02:14] Die Stellung ist ausgeglichen.} Qxa1 {[%emt 0:11:23]} 16. Na2 $1 {[%emt 0:00:51]} Nb6 $1 {[%emt 0:00:36] Zielt auf ...Nxc4 ab.} 17. Bb3 {[%emt 0:05:01] [#] Und jetzt Bg5 wäre schön.} (17. Be3 Qxd1+ 18. Qxd1 Nxc4 $17) 17... Na4 $1 {[%emt 0:00:12]} 18. Qc2 {[%emt 0:00:16] Gegen Qb1 gerichtet.} c5 {[%emt 0:06:03]} 19. e5 {[%emt 0:02:23]} (19. Bxa4 $2 Qxa2 20. dxc5 Rfd8 $19) 19... Nh7 {[%emt 0:01:26]} 20. d5 {[%emt 0:01:10][%cal Od5e6] Schwarz muss nun dxe6! beachten.} (20. Bxa4 Qxa2 21. dxc5 Rfd8 $15) (20. dxc5 $5 Rad8 21. Bd2 Qxb2 22. Bxa4 Qxe5 23. c6 bxc6 24. Nb4 $11 (24. Qxc6 $2 Rxd2 25. Qc4 Rxd1+ 26. Bxd1 Qe1+ 27. Qf1 Qa5 $19)) 20... c4 $1 {[%emt 0:01:17]} 21. Bxa4 {[%emt 0:41:25]} (21. Bxc4 $142 b5 22. Bxb5 Qxa2 23. Qxa4 Qxa4 24. Bxa4) 21... Qxa2 $11 {[%emt 0:00:21]} 22. dxe6 {[%emt 0:00:06]} (22. d6 $2 Rfb8 23. Bb5 Qa5 $19) 22... fxe6 {[%emt 0:00:10] ...Rfd8 wäre nun fies.} 23. Bd7 $1 {[%emt 0:00:08]} Rfd8 {[%emt 0:03:57]} (23... Qa5 $11 {hält das Gleichgewicht.} 24. Bxe6+ (24. Qxg6 Qxe5 25. Qxe6+ Qxe6 $15) 24... Kh8) 24. Bxe6+ $16 {[%emt 0:04:29]} ({Ein No Go ist} 24. Qxg6 $6 Nf8 25. Bxe6+ Nxe6 26. Qxe6+ Kh8 $11) 24... Kh8 {[%emt 0:00:03][%cal Oa2b1] [#]} 25. Re1 $1 $36 {[%emt 0:00:04][%mdl 2048] Läuft bei Weiss. Weiß hat aktiveres Spiel.} (25. Bxc4 $2 {ist das falsche Schlagen.} Rxd1+ 26. Qxd1 Qxc4 $19) 25... Qa5 {[%emt 0:01:43]} 26. Qe2 {[%emt 0:00:05]} c3 {[%emt 0:00:53] [#]} 27. bxc3 {[%emt 0:02:06]} Qxc3 {[%emt 0:00:02]} 28. h3 {[%emt 0:00:05]} (28. Bf7 $16) 28... Rf8 {[%emt 0:00:37]} (28... Qd3 $1 $11 29. Qb2 Rf8) 29. Bd7 {[%emt 0:01:06] Ein starkes Läuferpaar.} Rae8 {[%emt 0:00:49]} 30. Bxe8 {[%emt 0:01:56]} Rxe8 {[%emt 0:00:04]} 31. e6 {[%emt 0:00:04]} a6 {[%emt 0:00:59]} (31... Nf6 $142) 32. Bb2 {[%emt 0:01:36]} Qc5 {[%emt 0:00:07]} (32... Qb4 33. Qe5 Nf6) 33. Qe4 $18 {[%emt 0:00:35][%csl LRb7,LRg6]} Qe7 $2 {[%emt 0:00:52]} (33... Qa5 34. Re3 Qf5 35. Qxb7 Qb1+ 36. Kh2 Nf6) 34. Qxg6 {[%emt 0:00:12][%cal Ob2g7] Weiss droht Bxg7+! und Matt.} Rf8 {[%emt 0:00:32]} 35. Re3 {[%emt 0:00:58] Gewichteter Fehlerwert: Weiß=0.16 (sehr präzise) /Schwarz=0.41.  Fehler:       	Weiß=2     	Schwarz=6     Ungenau:       	Weiß=4     	Schwarz=2     OK:         	Weiß=9     	Schwarz=4     Bester:       	Weiß=2     	Schwarz=2     Stark:        	Weiß=3     	Schwarz=2} 1-0

[Event "50th La Roda Open 2024"]
[Site "La Roda"]
[Date "2024.03.30"]
[Round "6.2"]
[White "Siddharth, Jagadeesh"]
[Black "Sonis, Francesco"]
[Result "1/2-1/2"]
[ECO "B90"]
[WhiteElo "2490"]
[BlackElo "2562"]
[Annotator "TA"]
[PlyCount "100"]
[EventDate "2024.03.27"]
[EventType "swiss"]
[EventCountry "ESP"]
[SourceTitle "playchess.com"]
[Source "ChessBase"]
[SourceQuality "1"]
[TimeControl "5400+30"]

{[%evp 16,100,9,2,9,0,17,31,21,26,27,14,43,42,39,45,52,35,63,37,49,52,74,69,66,86,68,77,74,67,100,100,110,100,100,100,100,75,90,89,89,90,109,88,115,89,114,101,124,102,125,101,120,84,98,98,103,72,92,63,87,75,76,23,40,22,68,36,49,50,37,37,57,8,8,0,0,0,0,0,0,0,0,0,0,0,0]} 1. e4 {[%emt 0:00:11]} c5 {[%emt 0:00:05]} 2. Nf3 {[%emt 0:00:05]} d6 {[%emt 0:00:03]} 3. d4 {[%emt 0:00:06]} cxd4 {[%emt 0:00:06]} 4. Nxd4 {[%emt 0:00:05]} Nf6 {[%emt 0:00:04]} 5. Nc3 {[%emt 0:00:09]} a6 {[%emt 0:00:04]} 6. Be3 {[%emt 0:00:06]} e5 {[%emt 0:00:13]} 7. Nf3 {[%emt 0:00:07]} Be7 {[%emt 0:00:51]} 8. Bc4 {[%emt 0:00:06]} O-O {[%emt 0:01:39]} 9. Bb3 {[%emt 0:00:10] B90: Sicilian Najdorf: Unusual White 6th moves, 6 Be3 Ng4 and 6 Be3 e5.} Nc6 {[%emt 0:02:50]} 10. Bg5 {[%emt 0:00:09]} Be6 {[%emt 0:00:05]} 11. Bxf6 {[%emt 0:00:38]} Bxf6 {[%emt 0:00:04]} 12. Nd5 {[%emt 0:00:07]} Rc8 $146 {[%emt 0:09:41]} ({Predecessor:} 12... Bxd5 13. Qxd5 Qb6 14. c3 Be7 15. Nd2 Na5 16. Rb1 Rac8 17. O-O Qc7 18. Qd3 b5 {1-0 Varga,Z (2497)-Fargere,F (2330) Basel Hilton op 09th 2007 (4)}) 13. c3 {[%emt 0:10:00]} Bg5 {[%emt 0:05:57]} 14. Nxg5 {[%emt 0:01:06]} Qxg5 {[%emt 0:00:05]} 15. Ne3 {[%emt 0:00:04]} Rfd8 {[%emt 0:16:35]} 16. O-O {[%emt 0:00:13]} Qg6 {[%emt 0:00:57]} 17. Qf3 {[%emt 0:02:19]} Na5 {[%emt 0:13:11]} 18. Bd5 {[%emt 0:00:07]} Nc4 {[%emt 0:00:03]} 19. Nxc4 {[%emt 0:03:56]} (19. Bxb7 Rb8 20. Bd5 (20. Bxa6 Nd2 $17) 20... Nxe3 (20... Nxb2 21. Bb3 $16) 21. Qxe3 Bxd5 (21... Rxb2 22. Bb3 $11) 22. exd5 Rxb2 $14) 19... Bxd5 {[%emt 0:00:05]} 20. Nb6 $1 {[%emt 0:00:05]} Bxe4 {[%emt 0:00:05]} 21. Nxc8 $1 {[%emt 0:00:08]} Rxc8 {[%emt 0:00:14]} 22. Qg3 {[%emt 0:13:47]} Qxg3 {[%emt 0:09:11]} 23. hxg3 {[%emt 0:00:07]} ({But not} 23. fxg3 $6 h5 $15) 23... Kf8 {[%emt 0:03:04]} 24. f3 {[%emt 0:00:05]} Bg6 {[%emt 0:01:46]} 25. Rfd1 {[%emt 0:08:38]} Ke7 {[%emt 0:00:07]} 26. Rac1 {[%emt 0:00:03]} f6 {[%emt 0:02:26]} 27. c4 {[%emt 0:00:11]} Bf7 {[%emt 0:00:03]} 28. b3 {[%emt 0:00:10]} Be6 {[%emt 0:00:04]} 29. Kf2 {[%emt 0:00:13]} h6 {[%emt 0:00:21]} 30. Ke3 {[%emt 0:00:11]} b6 {[%emt 0:00:53]} 31. Kd2 {[%emt 0:04:18]} Rc7 {[%emt 0:01:47]} 32. Rc3 {[%emt 0:00:07]} Rc8 {[%emt 0:00:03]} 33. Rdc1 {[%emt 0:00:24]} Rc7 {[%emt 0:00:07]} 34. b4 {[%emt 0:02:31]} a5 {[%emt 0:03:35]} 35. bxa5 {[%emt 0:07:29]} bxa5 {[%emt 0:00:04]} 36. Ra3 {[%emt 0:06:36]} Rc5 {[%emt 0:00:03] [#]} 37. Rb1 $1 {[%emt 0:00:07]} Bxc4 {[%emt 0:03:33]} 38. Rb7+ {[%emt 0:00:06]} Ke6 {[%emt 0:00:03]} 39. Ra7 {[%emt 0:07:40]} ({White should play} 39. Rxg7 $16 Rd5+ 40. Kc1) 39... Rd5+ $11 {[%emt 0:03:28]} 40. Kc1 {[%emt 0:06:50]} Bf1 {[%emt 0:02:54]} (40... Be2 $11 {might be stronger.}) 41. Rxg7 {[%emt 0:00:10]} Bxg2 {[%emt 0:00:49]} 42. Rh7 {[%emt 0:00:02]} e4 {[%emt 0:05:28]} 43. fxe4 {[%emt 0:00:14]} (43. Rxh6 $2 {is the wrong capture.} exf3 (43... Bxf3 44. Rh8 $17) 44. Rh4 f2 $19) 43... Bxe4 {[%emt 0:00:03]} 44. Ra7 {[%emt 0:01:29]} (44. Rxh6 $14 Rc5+ 45. Kd1) 44... Rc5+ $11 {[%emt 0:00:20]} 45. Kd2 {[%emt 0:31:35]} Rc2+ {[%emt 0:01:04]} 46. Kd1 {[%emt 0:00:00]} Rh2 {[%emt 0:00:23]} 47. R7xa5 {[%emt 0:00:00]} d5 {[%emt 0:00:04]} 48. Rb5 {[%emt 0:00:00]} Ke5 {[%emt 0:03:29]} 49. Rb4 {[%emt 0:00:00]} Rh1+ {[%emt 0:02:04]} 50. Ke2 {[%emt 0:00:00]} Rh2+ {[%emt 0:00:03]} 1/2-1/2

[Event "50th La Roda Open 2024"]
[Site "La Roda"]
[Date "2024.03.30"]
[Round "6.3"]
[White "Karthik Venkataraman"]
[Black "Xu, Xiangyu"]
[Result "1/2-1/2"]
[ECO "D79"]
[WhiteElo "2609"]
[BlackElo "2623"]
[Annotator "TA"]
[PlyCount "36"]
[EventDate "2024.03.27"]
[EventType "swiss"]
[EventCountry "ESP"]
[SourceTitle "playchess.com"]
[Source "ChessBase"]
[SourceQuality "1"]
[TimeControl "5400+30"]

{[%evp 24,36,11,16,15,24,13,9,12,0,0,0,0,0,0]} 1. c4 {[%emt 0:02:07]} g6 {[%emt 0:00:19]} 2. d4 {[%emt 0:02:38]} Nf6 {[%emt 0:00:09]} 3. g3 {[%emt 0:02:25]} c6 {[%emt 0:00:38]} 4. Bg2 {[%emt 0:00:13]} d5 {[%emt 0:00:07]} 5. cxd5 {[%emt 0:01:59]} cxd5 {[%emt 0:00:08]} 6. Nf3 {[%emt 0:00:07]} Bg7 {[%emt 0:00:07]} 7. Nc3 {[%emt 0:00:44]} Ne4 {[%emt 0:00:14]} 8. Ne5 {[%emt 0:00:17]} Nxc3 {[%emt 0:00:18]} 9. bxc3 {[%emt 0:00:02]} Nc6 {[%emt 0:00:14]} 10. Nxc6 {[%emt 0:00:14]} bxc6 {[%emt 0:00:06]} 11. O-O {[%emt 0:00:47]} O-O {[%emt 0:00:08]} 12. Qa4 {[%emt 0:00:08]} Qb6 {[%emt 0:00:07]} 13. Ba3 {[%emt 0:00:09]} Qa6 {[%emt 0:00:06]} 14. Qxa6 {[%emt 0:00:09]} Bxa6 {[%emt 0:00:05]} 15. Rfb1 {[%emt 0:00:23] The position is equal.} Rfb8 {[%emt 0:00:07]} 16. e3 {[%emt 0:00:11]} Bf8 {[%emt 0:00:27]} 17. Bf1 {[%emt 0:00:07]} Bxf1 {[%emt 0:00:07]} 18. Kxf1 {[%emt 0:00:04]} e6 {[%emt 0:00:38] Not much happened in this game.   Weighted Error Value: White=0.02 (flawless) /Black=0.01 (flawless) .  OK:         	White=3     	Black=3} 1/2-1/2

[Event "50th La Roda Open 2024"]
[Site "La Roda"]
[Date "2024.03.30"]
[Round "6.4"]
[White "Albornoz Cabrera, Carlos Daniel"]
[Black "Buendia Pinar, Alvaro"]
[Result "1-0"]
[ECO "B12"]
[WhiteElo "2603"]
[BlackElo "2331"]
[Annotator "TA"]
[PlyCount "139"]
[EventDate "2024.03.27"]
[EventType "swiss"]
[EventCountry "ESP"]
[SourceTitle "playchess.com"]
[Source "ChessBase"]
[SourceQuality "1"]
[TimeControl "5400+30"]

{[%evp 71,139,89,394,412,356,368,398,414,426,431,446,460,462,459,416,283,614,625,514,462,1156,1104,1052,1052,952,925,811,779,1247,1313,5181,1036,5018,741,1327,897,6183,5168,29979,29979,29950,6215,1974,588,1009,899,898,434,649,379,1090,1008,29981,29982,29982,29983,29986,29984,29984,29985,29985,29986,29986,29985,29990,29988,29988,29989,29990,29991]} 1. e4 {[%emt 0:00:02]} c6 {[%emt 0:06:36]} 2. d4 {[%emt 0:00:05]} d5 {[%emt 0:01:03]} 3. e5 {[%emt 0:00:05]} c5 {[%emt 0:01:36]} 4. dxc5 {[%emt 0:00:06]} e6 {[%emt 0:00:03]} 5. Bd3 {[%emt 0:00:05]} Bxc5 {[%emt 0:00:11]} 6. Qg4 {[%emt 0:00:10]} Ne7 {[%emt 0:03:33]} 7. b4 {[%emt 0:00:13]} Bb6 {[%emt 0:03:54]} 8. Nf3 {[%emt 0:00:05]} Kf8 {[%emt 0:17:15]} 9. O-O {[%emt 0:03:40]} Ng6 {[%emt 0:04:43]} 10. Re1 {[%emt 0:20:38]} Qc7 {[%emt 0:08:26]} 11. Bb2 {[%emt 0:09:18]} Nc6 {[%emt 0:02:36]} 12. b5 {[%emt 0:07:06]} Nce7 {[%emt 0:01:02]} 13. Nbd2 {[%emt 0:00:37]} Bd7 {[%emt 0:06:31]} 14. Nb3 {[%emt 0:06:02]} Kg8 {[%emt 0:02:14]} 15. a4 {[%emt 0:01:58]} a5 {[%emt 0:00:09]} 16. Rac1 {[%emt 0:05:41]} Qb8 {[%emt 0:12:13]} 17. Bd4 {[%emt 0:04:48]} Bd8 {[%emt 0:02:00]} 18. Bc5 {[%emt 0:07:19]} Nf5 {[%emt 0:10:00]} 19. Bxf5 {[%emt 0:02:37]} exf5 {[%emt 0:00:06]} 20. Qd4 {[%emt 0:00:05]} Be6 {[%emt 0:00:05]} 21. Bb6 {[%emt 0:03:25]} h6 {[%emt 0:03:19]} 22. h4 {[%emt 0:05:58]} Kh7 {[%emt 0:01:50]} 23. h5 {[%emt 0:00:05]} Ne7 {[%emt 0:00:28]} 24. Bc5 {[%emt 0:00:04]} b6 {[%emt 0:01:54]} 25. Bd6 {[%emt 0:00:57]} Qb7 {[%emt 0:00:40]} 26. Qd3 {[%emt 0:01:40]} Qd7 {[%emt 0:00:30]} 27. Nbd4 {[%emt 0:01:09]} Nc8 {[%emt 0:00:47]} 28. Ba3 {[%emt 0:01:40]} Be7 {[%emt 0:00:03]} 29. Nc6 {[%emt 0:01:19]} Re8 {[%emt 0:02:33]} 30. Red1 {[%emt 0:02:43]} Bxa3 {[%emt 0:02:06]} 31. Qxa3 {[%emt 0:00:01]} Qb7 {[%emt 0:00:43]} 32. Ncd4 {[%emt 0:02:35]} Ne7 {[%emt 0:00:49]} 33. Nxe6 {[%emt 0:00:28]} fxe6 {[%emt 0:00:04]} 34. Nd4 {[%emt 0:00:08]} Ng8 {[%emt 0:01:06]} 35. c4 {[%emt 0:01:18]} dxc4 {[%emt 0:00:27]} 36. Nc6 {[%emt 0:01:49]} (36. Qg3 $18 Qf7) 36... Qf7 $2 {[%emt 0:01:47][%mdl 8192]} (36... Ne7 $16 {is more resistant.}) 37. Qf3 $18 {[%emt 0:00:29]} (37. Rxc4 Qxh5 38. Rd7 Rac8 $18) 37... Rac8 {[%emt 0:02:30]} 38. Rxc4 {[%emt 0:00:11]} Rc7 {[%emt 0:00:11]} 39. Rcd4 {[%emt 0:01:42]} Ne7 {[%emt 0:01:09]} 40. Rd7 {[%emt 0:01:02]} (40. Nd8 Qg8 41. Rd6 Rc5 $18) 40... Rxd7 {[%emt 0:00:05]} 41. Rxd7 {[%emt 0:00:02]} Qf8 {[%emt 0:00:07]} 42. Nxe7 {[%emt 0:08:17]} (42. g4 Kh8 43. Kg2 Kg8 $18) 42... Rxe7 {[%emt 0:00:04]} 43. Rd6 {[%emt 0:00:13]} Qb8 $2 {[%emt 0:00:54]} (43... Re8 44. g3 (44. Rxb6 Qb4 $18) 44... Qe7) 44. Rxe6 $18 {[%emt 0:00:25]} Rf7 {[%emt 0:01:43]} 45. Qg3 {[%emt 0:00:24]} Rf8 {[%emt 0:01:47]} (45... Kh8 $142 46. Rc6 Rf8) 46. Qg6+ {[%emt 0:00:16]} Kh8 {[%emt 0:00:05]} 47. Re7 {[%emt 0:00:27]} (47. Rxb6 Qxe5 48. Qd6 Qe1+ 49. Kh2 Qe8 $16) 47... Rg8 {[%emt 0:00:02]} 48. Qxf5 {[%emt 0:00:37]} Qd8 {[%emt 0:00:02]} 49. Qd7 {[%emt 0:02:16]} Qf8 {[%emt 0:00:06]} 50. g3 {[%emt 0:01:29]} Qa8 {[%emt 0:00:20]} 51. Qc6 {[%emt 0:00:45]} (51. e6 $142 Rc8 52. Qb7 (52. Rxg7 $2 Rc1+)) 51... Qd8 {[%emt 0:00:28]} 52. Qd6 {[%emt 0:00:43]} (52. Rd7 $142 Qg5 53. e6 (53. Qxb6 Re8 $18)) 52... Qf8 {[%emt 0:01:21]} 53. Rd7 {[%emt 0:00:32]} Qf5 {[%emt 0:00:47]} 54. Rd8 {[%emt 0:00:52]} Qxh5 {[%emt 0:00:09]} 55. Rxg8+ {[%emt 0:00:08]} Kxg8 {[%emt 0:00:04]} 56. Kg2 {[%emt 0:00:45]} (56. e6 $142 Qe2 57. Qd8+ (57. Qxb6 Qd1+ 58. Kh2 Qh5+ 59. Kg2 Qd5+ 60. f3 g6 $18) 57... Kh7 58. e7 (58. Qxb6 Qd1+ 59. Kg2 Qd5+ 60. f3 Qa2+ 61. Kh3 h5 $18) 58... Kg6 59. e8=Q+ (59. e8=R Qf3 $18) 59... Qxe8 60. Qxe8+ Kf6 61. Qd8+ Kf7 62. Qxb6) 56... Qf5 {[%emt 0:00:17]} 57. Qd5+ {[%emt 0:00:33]} (57. e6 $142 {Qd8+ would kill now.} Qe4+ 58. Kh2) 57... Kh8 {[%emt 0:00:05]} 58. Qd4 {[%emt 0:00:25]} h5 {[%emt 0:00:35]} 59. Qe3 {[%emt 0:00:37]} (59. Qxb6 $142 Qe4+ 60. Kh2 Qxe5 61. Qxa5) 59... Kg8 {[%emt 0:01:22]} (59... Qe6 $142 60. Qg5 g6 61. Qd8+ Kg7 62. Qc7+ Kf8) 60. Qf4 {[%emt 0:00:20]} Qg6 $2 {[%emt 0:01:07]} (60... Qe6 61. Qe4 Kh8) 61. Qc4+ $18 {[%emt 0:00:11]} Kh7 {[%emt 0:01:43]} 62. e6 {[%emt 0:00:23]} Qe8 {[%emt 0:00:20]} 63. Qc6 {[%emt 0:00:20]} Qd8 {[%emt 0:00:12]} 64. Qe4+ {[%emt 0:00:36]} g6 {[%emt 0:00:12]} 65. e7 {[%emt 0:00:33]} Qe8 {[%emt 0:00:03]} 66. Qe6 {[%emt 0:00:17]} Kg7 {[%emt 0:00:19]} 67. f4 {[%emt 0:00:49]} Kh7 {[%emt 0:01:04]} 68. Qf6 {[%emt 0:00:36]} (68. Qxb6 Qxe7 69. Kf3 (69. Qxa5 Qe2+ 70. Kg1 Qe3+ 71. Kg2 Qe4+ 72. Kf2 Qd4+ 73. Ke2 Qe4+ 74. Kd1 Qd4+ 75. Ke2 Qe4+ 76. Kd2 Qd4+ 77. Kc2 Qe4+ 78. Kd2 Qd4+ 79. Ke2 $11) 69... Qa3+ 70. Kg2 Qxa4 $16) 68... Kg8 {[%emt 0:01:13]} 69. Kh3 {[%emt 0:00:55]} Qc8+ {[%emt 0:00:19]} 70. f5 {[%emt 0:00:04]} 1-0